bitfinex/quotes_ETHUSD_20250518
["timestamp","ask_amount","ask_price","bid_price","bid_amount"]
[1747580342017,0.7672,2558.1,2557.4,0.03909772]
[1747580342194,3.90930414,2558.0,2557.3,16.70854612]
[1747580342399,3.90968199,2557.8,2557.3,16.70854612]
[1747580342841,3.90977533,2557.7,2557.3,8.868]
[1747580343019,0.7672,2558.1,2557.3,8.868]
[1747580343401,3.91010389,2557.5,2557.3,8.868]
[1747580343900,3.91010389,2557.5,2557.1,9.6521]
[1747580343901,3.91010389,2557.5,2557.4,8.866]
[1747580344331,3.90993675,2557.6,2557.1,9.6531]
[1747580344332,3.91024179,2557.4,2557.1,9.6531]
[1747580344518,3.91024179,2557.4,2556.9,0.08780404]
[1747580344519,3.91047872,2557.3,2556.9,0.08780404]
[1747580344724,4.72289779,2557.4,2557.0,8.865]
[1747580344920,0.8126,2557.4,2557.1,8.865]
[1747580345119,4.72289848,2557.4,2557.1,8.865]
[1747580345341,3.91053967,2557.2,2557.0,8.865]
[1747580345506,3.91044922,2557.3,2557.0,8.865]
[1747580345900,3.91054844,2557.2,2557.0,8.865]
[1747580346119,3.91046593,2557.3,2557.0,8.865]
[1747580346306,3.91037422,2557.3,2556.9,0.08780404]
[1747580346507,3.91053951,2557.2,2556.9,8.95080404]
[1747580346833,3.91060409,2557.2,2556.9,8.95080404]
[1747580347211,0.8126,2557.4,2556.9,8.94980404]
[1747580347424,1.75059457,2557.4,2556.9,8.94980404]
[1747580347733,3.910833,2557.0,2556.9,0.08780404]
[1747580349304,4.708933,2557.0,2556.9,0.08780404]
[1747580349508,4.708933,2557.0,2556.2,8.86]
[1747580349509,1.3481,2557.0,2556.2,8.86]
[1747580349706,3.91160868,2556.5,2556.0,0.7581]
[1747580349915,3.33808475,2556.7,2556.1,8.86]
[1747580350129,3.9118357,2556.4,2556.1,8.86]
[1747580350437,4.71326858,2556.5,2556.1,8.859]
[1747580350639,4.7127552,2556.8,2556.1,12.77105876]
[1747580350841,3.91147455,2556.6,2556.1,8.859]
[1747580351142,3.91144488,2556.6,2556.1,8.859]
[1747580351461,3.91151898,2556.6,2556.1,12.77119863]
[1747580351739,0.55,2556.7,2555.8,8.0]
[1747580351941,3.91123049,2556.8,2556.2,4.69875464]
[1747580352146,3.91123049,2556.8,2556.2,0.7868]
[1747580352346,3.910833,2557.0,2556.3,3.91179322]
[1747580352507,3.91109464,2556.9,2556.2,4.69883732]
[1747580352725,0.8016,2557.1,2556.2,4.69883732]
[1747580352726,3.91083658,2557.0,2556.5,3.91148029]
[1747580352928,3.91093289,2557.0,2556.4,3.91174784]
[1747580353147,0.03984894,2557.0,2556.3,1.35568373]
[1747580353427,3.91083685,2557.0,2556.5,3.91146997]
[1747580353626,4.70626846,2557.1,2556.6,3.91138137]
[1747580353843,0.79551306,2557.1,2556.6,9.63728513]
[1747580354262,0.79551306,2557.1,2556.6,12.76632155]
[1747580354464,5.59524304,2557.4,2556.6,12.76631783]
[1747580354465,0.93799457,2557.4,2556.6,12.76631783]
[1747580354635,0.93799457,2557.4,2556.6,8.855]
[1747580354824,4.65724847,2557.3,2556.6,8.855]
[1747580355240,3.9104245,2557.3,2556.7,0.8083]
[1747580355440,3.91006842,2557.5,2556.7,6.06354686]
[1747580355642,4.65724847,2557.8,2556.7,6.06354686]
[1747580355643,3.90975733,2557.8,2556.9,3.91091296]
[1747580355856,3.9100618,2557.6,2557.0,3.910742]
[1747580356050,3.91030442,2557.4,2556.8,3.9109911]
[1747580356253,3.90996716,2557.6,2556.9,0.03910494]
[1747580356474,3.90996716,2557.6,2557.0,3.910833]
[1747580356664,3.91007125,2557.5,2557.1,8.852]
[1747580357037,3.90994429,2557.6,2557.2,0.8083]
[1747580357237,3.9103608,2557.4,2556.9,10.79984864]
[1747580357443,3.91035675,2557.4,2557.1,8.852]
[1747580357759,3.91016436,2557.5,2557.1,8.852]
[1747580357951,14.31174847,2557.9,2557.1,8.852]
[1747580358149,3.91031455,2557.4,2557.1,8.852]
[1747580358465,3.9103681,2557.4,2557.1,8.852]
[1747580358640,3.91017357,2557.5,2557.1,8.852]
[1747580358829,3.9102563,2557.4,2557.1,8.852]
[1747580359026,3.91031226,2557.4,2557.1,8.852]
[1747580359255,3.91030895,2557.4,2557.1,8.852]
[1747580359451,3.91037838,2557.3,2557.1,8.852]
[1747580359758,3.91029283,2557.4,2557.1,8.852]
[1747580360059,3.91069976,2557.1,2556.7,8.848]
[1747580360279,3.91099196,2556.9,2556.7,8.848]
[1747580360476,3.9108953,2557.0,2556.6,9.654]
[1747580360688,3.91099028,2556.9,2556.6,0.807]
[1747580360982,8.56764864,2557.3,2556.4,0.807]
[1747580361181,3.91149066,2556.6,2556.2,9.33800951]
[1747580361382,3.91118532,2556.8,2556.3,8.846]
[1747580361589,3.91129189,2556.7,2556.3,8.846]
[1747580361790,0.03984894,2556.7,2556.2,0.45400951]
[1747580361949,3.91136709,2556.7,2556.2,0.45400951]
[1747580362150,3.91153647,2556.6,2556.2,0.45400951]
[1747580362347,0.7706,2556.9,2556.2,0.45400951]
[1747580362591,4.45394421,2556.8,2556.2,0.45400951]
[1747580362951,3.91190392,2556.3,2556.2,0.45400951]
[1747580363155,3.91180347,2556.4,2556.2,0.45400951]
[1747580363352,0.55,2556.7,2556.2,0.45400951]
[1747580363552,0.54278485,2556.8,2556.2,0.45400951]
[1747580363773,3.91144488,2556.6,2556.2,0.45400951]
[1747580363996,8.7706,2556.9,2556.2,0.45400951]
[1747580364248,3.91113892,2556.8,2556.2,0.45400951]
[1747580364453,3.91078712,2557.1,2556.3,0.7893]
[1747580364651,0.81,2557.2,2556.2,9.29600951]
[1747580364870,0.55,2557.1,2556.2,9.29600951]
[1747580365073,3.91145398,2556.6,2556.2,8.842]
[1747580365281,0.81,2556.7,2555.9,1.24330951]
[1747580365478,3.91175769,2556.4,2556.0,17.686]
[1747580365673,3.9119068,2556.3,2556.1,8.841]
[1747580366082,3.91202838,2556.3,2556.1,8.841]
[1747580366386,4.72135326,2556.7,2556.0,8.845]
[1747580366552,3.91159788,2556.5,2556.2,8.84]
[1747580366759,0.81,2556.7,2556.2,8.84]
[1747580367190,3.91141555,2556.7,2556.2,8.84]
[1747580367392,0.81,2557.0,2556.4,3.91161245]
[1747580367603,3.91106051,2556.9,2556.4,3.91161245]
[1747580367889,3.91106051,2556.9,2556.3,0.7893]
[1747580367890,3.9112305,2556.8,2556.5,8.845]
[1747580368097,0.81,2557.0,2556.5,8.845]
[1747580368301,3.91144488,2556.6,2556.5,8.845]
[1747580368471,3.91136486,2556.7,2556.5,8.845]
[1747580368670,0.81,2557.0,2556.5,8.845]
[1747580368856,3.91140145,2556.7,2556.5,8.845]
[1747580369053,3.91115186,2556.8,2556.5,8.845]
[1747580369667,8.8303,2557.4,2556.6,0.83541392]
[1747580369886,8.8303,2557.4,2556.7,8.836]
[1747580369887,3.91091629,2557.0,2556.7,8.836]
[1747580370097,3.91104107,2556.9,2556.6,0.7963]
[1747580370403,3.91059983,2557.2,2556.7,8.845]
[1747580370600,3.91113892,2556.8,2556.7,8.845]
[1747580370799,3.91113892,2556.8,2556.7,17.679]
[1747580371486,3.910833,2557.0,2556.7,17.679]
[1747580371985,3.91094451,2557.0,2556.7,17.679]
[1747580372185,3.91056772,2557.2,2556.7,17.679]
[1747580372358,3.91076019,2557.1,2556.7,17.679]
[1747580372558,3.91076019,2557.1,2556.8,0.7963]
[1747580372900,3.91044716,2557.3,2556.8,6.94602937]
[1747580373206,3.91044716,2557.3,2556.8,19.92397273]
[1747580373402,3.91058838,2557.2,2556.8,19.92397273]
[1747580373897,3.91059866,2557.2,2556.8,19.92397273]
[1747580374202,3.90998942,2557.6,2556.8,19.92397273]
[1747580374405,3.91059716,2557.2,2556.8,17.6853]
[1747580374555,3.91067873,2557.2,2556.9,17.674]
[1747580375186,3.91044312,2557.3,2556.9,17.674]
[1747580375957,3.91052973,2557.2,2556.9,17.674]
[1747580376160,3.91044048,2557.3,2556.9,17.674]
[1747580376360,3.91029764,2557.4,2556.9,17.674]
[1747580376597,3.9104624,2557.3,2556.9,17.674]
[1747580376902,3.91030825,2557.4,2556.9,17.674]
[1747580377211,5.34087451,2557.8,2556.9,17.674]
[1747580377212,0.7697,2558.0,2557.0,0.36535375]
[1747580377358,3.91003765,2557.6,2557.0,0.36535375]
[1747580377562,3.90988122,2557.7,2557.1,3.91058904]
[1747580377756,8.7697,2558.0,2557.0,0.36535375]
[1747580377995,3.90993515,2557.6,2557.0,0.36535375]
[1747580378308,3.90906667,2558.2,2557.3,0.8217]
[1747580378610,3.90925083,2558.1,2557.6,0.8217]
[1747580379194,3.90965217,2557.8,2557.6,0.8217]
[1747580379357,3.90916485,2558.1,2557.7,8.821]
[1747580379561,3.91002092,2557.6,2557.2,0.8217]
[1747580379775,3.91002092,2557.6,2557.3,17.666]
[1747580379996,3.91009695,2557.5,2557.3,17.666]
[1747580380160,3.91012091,2557.5,2557.4,17.664]
[1747580380500,3.91006842,2557.5,2557.4,8.82]
[1747580380677,4.30107526,2557.5,2557.0,0.45400951]
[1747580380880,3.91052713,2557.2,2557.1,17.662]
[1747580381062,3.91068006,2557.1,2557.0,0.45400951]
[1747580381262,3.91068006,2557.1,2557.0,9.27100951]
[1747580381604,3.91068006,2557.1,2556.4,16.886]
[1747580381605,3.910833,2557.0,2556.9,8.817]
[1747580382199,3.9112158,2556.8,2556.6,8.844]
[1747580382503,3.9112158,2556.8,2556.7,8.816]
[1747580382684,3.91111939,2556.9,2556.7,8.816]
[1747580382902,3.91060727,2557.2,2556.8,0.8217]
[1747580383100,0.8106,2557.4,2556.8,0.8217]
[1747580383288,3.91098595,2556.9,2556.7,8.816]
[1747580383492,3.91098595,2556.9,2556.8,8.814]
[1747580383701,3.91135213,2556.7,2556.5,0.7803]
[1747580383907,3.91039718,2557.3,2556.4,16.886]
[1747580384085,3.91129189,2556.7,2556.6,17.658]
[1747580384412,3.91129189,2556.7,2556.6,8.844]
[1747580384611,3.91159788,2556.5,2556.4,16.886]
[1747580384816,3.9117801,2556.4,2556.2,0.7803]
[1747580384993,3.9117801,2556.4,2556.3,8.813]
[1747580386213,3.91153175,2556.6,2556.3,8.813]
[1747580386400,0.7987,2556.9,2556.3,8.813]
[1747580386604,3.91144323,2556.7,2556.3,8.813]
[1747580386794,3.91113892,2556.8,2556.3,8.813]
[1747580386979,3.91103494,2556.9,2556.3,8.813]
[1747580387185,3.91098595,2556.9,2556.4,3.91171992]
[1747580387381,3.91098595,2556.9,2556.3,12.72481539]
[1747580387382,3.9111015,2556.9,2556.3,12.72481539]
[1747580387691,3.91121112,2556.8,2556.3,11.43912055]
[1747580388015,3.91151959,2556.6,2556.3,11.43912055]
[1747580388187,8.7987,2557.2,2556.3,11.43912055]
[1747580388590,0.7987,2557.5,2556.4,4.6920208]
[1747580388806,3.91082672,2557.1,2556.5,3.91145817]
[1747580389108,4.70880957,2557.5,2556.6,0.46917582]
[1747580389316,3.91090453,2557.0,2556.7,8.845]
[1747580389535,3.9110539,2556.9,2556.7,8.845]
[1747580389699,3.9110539,2556.9,2556.8,8.807]
[1747580390620,3.91022131,2557.4,2556.8,8.807]
[1747580390936,3.91091088,2557.0,2556.8,8.807]
[1747580391284,3.91022131,2557.4,2556.8,8.807]
[1747580391285,3.91098595,2556.9,2556.8,8.807]
[1747580391495,0.7987,2557.5,2556.8,8.807]
[1747580391496,3.91022131,2557.4,2556.8,8.807]
[1747580391699,0.7987,2557.5,2556.9,0.7803]
[1747580392009,3.91095179,2557.0,2556.8,8.807]
[1747580392180,3.911274,2556.8,2556.4,8.7803]
[1747580392384,3.9113299,2556.7,2556.5,8.845]
[1747580392619,3.91144488,2556.6,2556.5,8.845]
[1747580392792,3.91159788,2556.5,2555.9,0.7803]
[1747580392993,3.91174239,2556.5,2555.9,4.69273958]
[1747580393222,3.91178799,2556.4,2556.0,17.602]
[1747580393718,3.91178799,2556.4,2556.1,8.801]
[1747580394067,3.91172691,2556.5,2556.0,8.801]
[1747580394068,3.91192237,2556.3,2556.0,8.801]
[1747580394209,3.91182935,2556.4,2556.1,17.601]
[1747580394421,3.91172691,2556.5,2556.1,17.601]
[1747580394626,3.91150298,2556.6,2556.1,17.601]
[1747580395437,3.91161174,2556.5,2556.1,17.601]
[1747580396015,3.91151857,2556.6,2556.1,17.601]
[1747580396217,3.91176911,2556.4,2555.9,4.69277887]
[1747580396424,3.91176911,2556.4,2556.2,17.599]
[1747580396590,3.91167998,2556.5,2555.9,6.89615771]
[1747580396899,3.9107873,2557.1,2556.5,3.91159788]
[1747580397097,0.7987,2557.7,2556.4,0.81940845]
[1747580397304,3.9108013,2557.1,2556.6,3.91136506]
[1747580397498,3.91087696,2557.0,2556.5,22.47121049]
[1747580397695,3.91047389,2557.3,2556.7,3.91129189]
[1747580397921,3.91068447,2557.1,2556.6,4.69165504]
[1747580398109,3.90991554,2557.6,2556.6,0.7803]
[1747580398311,3.91052514,2557.3,2556.6,2.71429409]
[1747580398513,0.7987,2557.7,2556.9,0.7753]
[1747580398821,14.74446819,2558.0,2557.0,21.50673605]
[1747580399121,3.91011454,2557.5,2557.0,21.50673605]
[1747580399321,3.90983454,2557.7,2557.2,0.7753]
[1747580399523,3.90997001,2557.6,2557.2,0.7753]
[1747580400027,3.90993457,2557.6,2557.2,1.74283137]
[1747580400404,0.7851,2558.0,2557.2,1.74283137]
[1747580400625,3.90965104,2557.8,2557.3,3.9102662]
[1747580400829,3.90945697,2557.9,2557.3,3.9102662]
[1747580401025,3.90932861,2558.0,2557.6,0.7753]
[1747580401026,3.90944103,2558.0,2557.6,0.7753]
[1747580401354,3.90952161,2557.9,2557.7,8.79]
[1747580401495,3.90956071,2557.9,2557.7,8.79]
[1747580401689,3.9090629,2558.2,2557.7,8.79]
[1747580401918,3.90991554,2557.6,2557.5,0.7753]
[1747580402193,3.90945697,2557.9,2557.5,18.3643]
[1747580402394,0.7851,2558.3,2557.5,20.20073]
[1747580402697,3.90918264,2558.1,2557.6,3.9098158]
[1747580403218,0.7911,2559.4,2557.8,0.7618]
[1747580403389,0.03984894,2559.3,2558.1,0.7618]
[1747580403594,3.90790925,2559.0,2558.4,3.90868877]
[1747580403831,4.69840481,2559.4,2558.6,4.6701629]
[1747580404068,3.90740654,2559.3,2558.7,3.90813953]
[1747580404233,3.90686044,2559.6,2558.9,3.90789878]
[1747580404419,0.7911,2559.7,2559.0,18.3468]
[1747580404620,3.90732177,2559.3,2559.1,8.799]
[1747580405038,3.90732177,2559.3,2559.0,0.7618]
[1747580405366,3.90749262,2559.2,2559.1,8.782]
[1747580405856,3.90724803,2559.4,2559.2,0.7618]
[1747580406214,3.90701308,2559.5,2559.2,0.7618]
[1747580406414,3.9073184,2559.3,2559.2,0.7618]
[1747580406644,3.90670781,2559.7,2558.8,0.7618]
[1747580406860,3.9073184,2559.3,2559.2,8.78]
[1747580409642,11.90650639,2559.9,2559.2,8.78]
[1747580409840,3.90710254,2559.5,2559.2,8.78]
[1747580410250,3.90698277,2559.6,2559.2,8.78]
[1747580410545,18.61297281,2560.4,2559.2,8.78]
[1747580410546,3.90678553,2559.7,2559.3,0.7975]
[1747580410751,3.9064732,2559.9,2559.4,8.796]
[1747580411046,3.90701308,2559.5,2559.3,0.7975]
[1747580411250,0.03984894,2559.6,2559.0,0.7975]
[1747580411452,3.90762377,2559.1,2559.0,8.796]
[1747580411743,3.9065736,2559.8,2559.2,0.7975]
[1747580411952,3.90594484,2560.2,2559.5,3.90693332]
[1747580412160,3.9061729,2560.1,2559.6,18.3625]
[1747580412450,3.90601925,2560.2,2559.7,8.796]
[1747580412609,3.90602758,2560.2,2559.9,0.7975]
[1747580412807,3.9065489,2559.9,2559.7,8.796]
[1747580413012,3.90631276,2560.0,2559.8,8.768]
[1747580413213,3.90640259,2559.9,2559.8,8.768]
[1747580413406,3.9054872,2560.5,2559.9,0.7788]
[1747580413644,4.67631749,2560.9,2559.9,0.7788]
[1747580413948,3.90607286,2560.2,2560.0,8.765]
[1747580414143,8.0,2561.0,2560.1,0.7788]
[1747580414348,3.90574859,2560.4,2560.2,17.559]
[1747580414532,3.90574859,2560.4,2560.2,19.39278]
[1747580414706,3.90579228,2560.3,2560.2,19.39278]
[1747580414910,3.90594484,2560.2,2560.1,9.5738]
[1747580415245,3.90594484,2560.2,2560.1,18.3368]
[1747580415410,3.90626921,2560.0,2559.8,2.5352]
[1747580415610,3.90640259,2559.9,2559.8,2.5352]
[1747580415909,3.90640259,2559.9,2559.8,1.7564]
[1747580416108,3.90640259,2559.9,2559.8,19.3134]
[1747580416350,3.90626511,2560.0,2559.8,19.3134]
[1747580416351,3.90631602,2560.0,2559.8,19.3134]
[1747580416749,3.9061695,2560.1,2559.8,19.3134]
[1747580417041,3.9061695,2560.1,2559.9,1.93134]
[1747580417340,3.90625,2560.0,2559.9,1.93134]
[1747580417514,3.90640259,2559.9,2559.8,1.7564]
[1747580417714,3.90640259,2559.9,2559.8,19.3084]
[1747580419124,3.90670781,2559.7,2559.6,17.6538]
[1747580419326,3.90670781,2559.7,2559.6,35.2018]
[1747580419550,3.9066294,2559.8,2559.6,35.2018]
[1747580419748,3.90647149,2559.9,2559.6,35.2018]
[1747580419915,3.90647149,2559.9,2559.6,0.7788]
[1747580420111,3.90603611,2560.2,2559.7,17.546]
[1747580420314,3.90603611,2560.2,2559.7,23.67584173]
[1747580420513,3.90582248,2560.3,2559.7,19.769158]
[1747580420728,3.90642727,2559.9,2559.7,2.223158]
[1747580421017,4.65724847,2560.4,2559.8,8.792]
[1747580421234,3.90640259,2559.9,2559.8,8.792]
[1747580421447,3.90640259,2559.9,2559.8,17.545]
[1747580423018,4.67828116,2560.4,2559.8,17.545]
[1747580423216,3.90640259,2559.9,2559.8,17.545]
[1747580423451,3.90670781,2559.7,2559.6,0.7788]
[1747580423658,3.90670781,2559.7,2559.6,17.499]
[1747580424022,3.90661394,2559.8,2559.6,17.499]
[1747580424344,3.90670781,2559.7,2559.6,17.499]
[1747580425155,3.9064344,2559.9,2559.6,17.499]
[1747580425355,3.90670781,2559.7,2559.6,17.499]
[1747580425659,4.67836435,2560.4,2559.6,19.32897]
[1747580425849,3.90640404,2559.9,2559.6,17.499]
[1747580426054,3.90619024,2560.1,2559.6,17.499]
[1747580426362,3.90591442,2560.3,2559.8,0.8007]
[1747580426521,3.90625,2560.0,2559.9,17.494]
[1747580426724,0.86924894,2560.4,2559.9,17.494]
[1747580426725,3.90609,2560.2,2559.9,17.494]
[1747580426918,0.8294,2560.4,2559.9,17.494]
[1747580427239,3.90604043,2560.2,2559.9,17.494]
[1747580428038,3.90604043,2560.2,2560.0,0.8007]
[1747580428224,3.90580634,2560.3,2560.0,0.8007]
[1747580428225,3.90583703,2560.3,2560.0,0.8007]
[1747580428625,3.90571929,2560.4,2560.0,0.8007]
[1747580428847,3.90571929,2560.4,2560.1,17.491]
[1747580429070,8.0,2560.8,2560.1,17.491]
[1747580429226,3.90513015,2560.8,2560.2,1.82917]
[1747580429424,0.03984894,2560.7,2560.2,1.82917]
[1747580429627,3.9056737,2560.4,2559.7,0.7891]
[1747580429822,3.90655519,2559.8,2559.7,9.5381]
[1747580430058,3.90655519,2559.8,2559.7,17.489]
[1747580430225,3.90563974,2560.4,2559.7,17.489]
[1747580430428,3.90607359,2560.2,2559.7,17.489]
[1747580430626,3.90579228,2560.3,2559.7,17.489]
[1747580430841,3.90604544,2560.2,2559.8,0.7571]
[1747580431061,3.9057979,2560.3,2559.8,0.7571]
[1747580431262,0.03984894,2560.2,2559.9,17.487]
[1747580431450,3.90612082,2560.1,2560.0,8.738]
[1747580431849,3.90678474,2559.7,2559.5,0.7571]
[1747580432024,3.90672605,2559.7,2559.6,8.749]
[1747580432223,3.90672605,2559.7,2559.6,17.486]
[1747580432466,3.90672605,2559.7,2559.2,16.871]
[1747580432467,0.03984894,2559.7,2559.2,16.871]
[1747580432633,3.90701308,2559.5,2559.4,8.749]
[1747580433258,3.9073184,2559.3,2559.2,16.871]
[1747580433426,3.9073184,2559.3,2558.7,3.90814917]
[1747580433427,3.90747108,2559.2,2558.7,0.7571]
[1747580433632,17.91911955,2559.2,2558.5,8.735]
[1747580433833,26.66811955,2559.2,2558.2,1.20737704]
[1747580434249,17.91957765,2558.9,2558.2,1.20737704]
[1747580434569,4.45884571,2558.3,2558.2,1.20737704]
[1747580434862,4.45884571,2558.3,2557.4,8.733]
[1747580434863,3.91006842,2557.5,2557.4,8.733]
[1747580435062,3.91006842,2557.5,2557.2,0.6090946]
[1747580435063,3.91037422,2557.3,2557.2,0.6090946]
[1747580435268,3.91028472,2557.4,2557.2,9.3420946]
[1747580435480,3.91037422,2557.3,2557.2,0.6090946]
[1747580435785,0.8044,2558.1,2557.2,9.3410946]
[1747580435953,3.90903417,2558.2,2557.6,3.90978399]
[1747580436153,0.8044,2558.6,2557.7,17.481]
[1747580436366,3.90909927,2558.2,2557.7,17.481]
[1747580436566,0.55,2558.5,2557.3,1.69120946]
[1747580436883,0.55,2558.0,2557.4,8.731]
[1747580437182,0.55,2558.0,2557.2,0.6090946]
[1747580437371,0.55,2558.0,2557.3,8.73]
[1747580437680,3.91022131,2557.4,2557.3,8.73]
[1747580437885,3.91013332,2557.5,2557.3,8.73]
[1747580438062,3.91030918,2557.4,2557.2,8.751]
[1747580438247,3.91030918,2557.4,2557.3,8.732]
[1747580438682,3.91012848,2557.5,2557.3,8.732]
[1747580438883,3.91022131,2557.4,2557.3,8.732]
[1747580439573,3.91037422,2557.3,2557.1,8.73]
[1747580439775,3.91037422,2557.3,2556.3,16.873]
[1747580439776,3.91117141,2556.8,2556.4,0.79854549]
[1747580440088,3.91102951,2556.9,2556.5,17.48]
[1747580440264,3.9108826,2557.0,2556.5,8.751]
[1747580440460,3.91068349,2557.1,2556.6,8.729]
[1747580440785,3.91159458,2556.6,2556.4,8.79444549]
[1747580440992,3.91159458,2556.6,2556.4,0.04144549]
[1747580441157,3.91159788,2556.5,2556.4,0.04144549]
[1747580441347,3.91159788,2556.5,2556.4,8.77044549]
[1747580441689,3.91159788,2556.5,2556.4,0.04144549]
[1747580442067,3.91159788,2556.5,2556.4,8.76944549]
[1747580442476,4.46159788,2556.5,2556.4,0.04144549]
[1747580442680,14.08815161,2556.5,2556.4,0.04144549]
[1747580442876,14.04830267,2556.5,2556.4,0.04144549]
[1747580443078,3.91248445,2556.0,2555.8,8.727]
[1747580443287,3.91248445,2556.0,2555.4,9.5101]
[1747580443288,3.91326583,2555.5,2555.4,8.727]
[1747580443487,3.91296058,2555.7,2555.4,8.727]
[1747580443903,4.65724847,2555.5,2554.4,0.7908]
[1747580444088,3.91353369,2555.3,2554.7,8.75628695]
[1747580444395,0.03984894,2555.2,2554.7,8.75628695]
[1747580444557,3.91420072,2554.8,2554.7,0.02828695]
[1747580444756,17.91214919,2554.8,2554.7,0.02828695]
[1747580444989,20.97026911,2554.8,2554.7,0.02828695]
[1747580445174,20.97026911,2554.8,2554.1,1.20737704]
[1747580445175,3.91512019,2554.2,2554.1,1.20737704]
[1747580445376,17.36306866,2554.2,2554.1,1.20737704]
[1747580445654,12.99850153,2554.2,2554.1,1.20737704]
[1747580445953,4.70582019,2554.2,2554.1,1.20737704]
[1747580446155,5.80628364,2554.5,2553.8,8.726]
[1747580446354,5.80628364,2554.5,2553.0,16.881]
[1747580446355,3.91570097,2553.9,2553.0,16.881]
[1747580446602,0.03984894,2553.8,2553.3,3.91634809]
[1747580446792,3.91569023,2553.9,2553.2,12.67662983]
[1747580446980,3.91548192,2554.0,2553.3,3.9164649]
[1747580447293,0.81222868,2554.0,2553.4,8.729]
[1747580447461,0.29168473,2554.2,2553.0,16.881]
[1747580447659,0.29168473,2554.2,2552.1,5.89790281]
[1747580447660,0.7907,2553.7,2552.1,5.89790281]
[1747580447863,0.7907,2553.7,2552.4,18.2798]
[1747580448184,3.91575712,2553.8,2552.4,4.70861153]
[1747580448387,4.7061239,2554.1,2552.9,0.8018]
[1747580448597,13.19260355,2554.6,2552.9,0.8018]
[1747580448598,4.74645658,2554.5,2553.9,3.9154941]
[1747580448788,4.74645658,2554.5,2554.0,8.728]
[1747580448789,0.8317,2554.5,2554.0,8.728]
[1747580448988,3.91518853,2554.2,2553.6,8.728]
[1747580449304,3.91492915,2554.4,2553.5,8.727]
[1747580449603,0.8317,2554.5,2553.9,3.91557498]
[1747580449806,0.8317,2555.1,2554.0,17.49]
[1747580450101,0.55,2554.8,2553.9,0.8018]
[1747580450273,0.55,2554.8,2553.4,16.89]
[1747580450274,3.91515611,2554.2,2554.0,8.729]
[1747580450462,3.91450716,2554.6,2554.0,8.729]
[1747580450660,0.44645072,2554.6,2553.7,12.67887856]
[1747580450873,0.44645072,2554.6,2553.8,8.729]
[1747580450874,3.91522081,2554.2,2553.8,8.729]
[1747580451076,8.0,2554.9,2553.9,3.91547953]
[1747580451276,8.0,2554.9,2553.8,8.729]
[1747580451496,0.8317,2555.1,2553.5,0.7533]
[1747580451497,4.74552405,2555.1,2553.9,17.491]
[1747580451798,8.0,2554.9,2554.0,1.7491]
[1747580451998,0.8317,2555.1,2554.1,4.66843888]
[1747580452206,4.74548402,2555.1,2554.1,0.7533]
[1747580452502,3.914314,2554.8,2554.2,8.728]
[1747580452678,8.65963482,2555.4,2554.2,8.728]
[1747580453003,3.91368206,2555.2,2554.5,0.7533]
[1747580453209,7.88893482,2555.4,2554.5,17.6523]
[1747580453377,3.91374114,2555.1,2554.5,17.6523]
[1747580453581,3.91501991,2554.3,2554.1,9.5065]
[1747580453878,0.7879,2555.0,2554.1,9.5065]
[1747580454070,3.91484635,2554.4,2554.1,9.5065]
[1747580454266,3.91484635,2554.4,2554.1,0.7785]
[1747580454466,3.91488162,2554.4,2554.2,8.727]
[1747580454804,8.87879,2554.9,2554.2,8.727]
[1747580454993,3.9142017,2554.8,2554.2,8.727]
[1747580455166,8.0,2555.3,2554.2,15.24843985]
[1747580455501,3.91523156,2554.2,2553.7,16.899]
[1747580455705,3.91523156,2554.2,2553.8,8.729]
[1747580455900,3.91523156,2554.2,2553.8,17.455]
[1747580456104,0.7879,2554.7,2554.1,3.91519899]
[1747580456303,0.7879,2555.2,2554.2,0.7785]
[1747580456506,3.91451415,2554.6,2554.2,0.7785]
[1747580456804,3.91465161,2554.6,2554.3,17.455]
[1747580457616,0.87879,2555.1,2554.4,17.454]
[1747580457779,0.7879,2555.2,2554.2,0.7785]
[1747580457971,4.70276263,2554.4,2553.0,0.7785]
[1747580458167,4.70276263,2554.4,2553.2,3.91655835]
[1747580458168,3.91573865,2553.8,2553.2,3.91655835]
[1747580458389,3.91496691,2554.3,2553.2,3.9165659]
[1747580458715,3.91581478,2553.8,2553.2,3.9165659]
[1747580458915,3.9156532,2553.9,2553.3,3.91647432]
[1747580459073,3.91576172,2553.8,2553.3,3.91647432]
[1747580459275,3.9155857,2553.9,2553.5,0.7798]
[1747580460071,3.9146604,2554.5,2553.6,3.9160401]
[1747580460298,3.91503177,2554.3,2553.7,3.9158082]
[1747580460496,5.57473042,2555.1,2554.1,0.7798]
[1747580460717,3.91431516,2554.8,2554.2,17.453]
[1747580460896,3.91431516,2554.8,2554.1,4.73418635]
[1747580460897,3.91458724,2554.6,2554.3,17.453]
[1747580461215,3.91436439,2554.7,2554.3,17.453]
[1747580461566,3.91452157,2554.6,2554.3,17.453]
[1747580461768,3.91439562,2554.7,2554.3,17.453]
[1747580462166,3.91374373,2555.1,2554.4,3.95396012]
[1747580462406,3.91374373,2555.1,2554.5,0.7798]
[1747580462609,0.7821,2555.8,2555.0,0.7798]
[1747580462778,8.7821,2555.8,2555.1,8.722]
[1747580462983,3.91331033,2555.4,2555.1,8.722]
[1747580463191,0.7821,2555.8,2555.1,8.722]
[1747580463192,3.91345525,2555.3,2555.1,8.722]
[1747580463384,3.91374114,2555.1,2555.0,9.5098]
[1747580463708,3.91420334,2554.8,2554.7,0.7748]
[1747580463916,3.91481365,2554.4,2554.3,8.722]
[1747580464205,1.19637411,2555.1,2554.3,8.722]
[1747580464419,3.91481365,2554.4,2554.3,8.722]
[1747580464627,3.91481365,2554.4,2554.2,8.73]
[1747580464628,8.0,2554.9,2554.0,0.7748]
[1747580464803,3.91527348,2554.1,2554.0,0.7748]
[1747580465006,3.91527348,2554.1,2553.8,16.903]
[1747580465177,3.91558009,2553.9,2553.8,16.903]
[1747580465480,3.91558009,2553.9,2553.8,25.623]
[1747580465683,3.91588675,2553.7,2553.6,8.73]